bitfinex-derivatives/quotes_SOLF0:USTF0_20250520
["timestamp","ask_amount","ask_price","bid_price","bid_amount"]
[1747748348088,0.03905709,166.0,165.97,6.0681789]
[1747748348290,0.03905709,166.0,165.97,0.0453789]
[1747748348493,0.03905709,166.0,165.8,69.3377]
[1747748348494,6.05905709,166.0,165.85,84.2]
[1747748348789,26.36313476,165.96,165.83,4.1619]
[1747748348995,26.36313476,165.96,165.81,86.1304]
[1747748348996,88.1565,165.95,165.81,86.1304]
[1747748349290,6.0261,165.88,165.81,86.1304]
[1747748349689,0.04549926,165.87,165.83,0.03826452]
[1747748349892,0.04522364,165.87,165.83,0.04098613]
[1747748350595,6.0275,165.84,165.83,0.04098613]
[1747748352395,6.0299,165.78,165.76,84.2]
[1747748352694,84.2,165.85,165.74,520.82]
[1747748353490,0.04324711,165.81,165.78,0.04608576]
[1747748353695,0.04324711,165.81,165.8,6.029]
[1747748354093,0.04324711,165.81,165.79,6.0293]
[1747748354397,0.04324711,165.81,165.78,0.04608576]
[1747748354694,6.0294,165.79,165.78,0.04608576]
[1747748354995,0.04324711,165.81,165.78,0.04608576]
[1747748356692,0.04324711,165.81,165.8,6.029]
[1747748357098,0.04324711,165.81,165.78,0.04608576]
[1747748358097,0.04324711,165.81,165.8,6.029]
[1747748358496,0.04324711,165.81,165.78,0.04608576]
[1747748359001,0.04324711,165.81,165.8,6.029]
[1747748359901,4.711e-05,165.81,165.8,90.249]
[1747748360095,605.06,165.9,165.86,6.0267]
[1747748360297,86.1868,165.95,165.8,84.22]
[1747748360501,86.1868,165.95,165.91,6.0249]
[1747748360699,84.22,165.95,165.86,84.22]
[1747748361002,0.0439048,165.92,165.89,0.0461416]
[1747748361602,0.0439048,165.92,165.89,6.0716416]
[1747748361895,0.0439048,165.92,165.89,0.0461416]
[1747748362100,0.0439048,165.92,165.9,6.0251]
[1747748362303,0.0439048,165.92,165.89,0.0461416]
[1747748362701,0.0439048,165.92,165.91,6.025]
[1747748364206,2.0585,166.03,165.91,84.2]
[1747748364405,2.0585,166.03,165.92,1.50739237]
[1747748364704,2.0585,166.03,165.99,6.0218]
[1747748365104,2.10067045,166.03,165.99,0.04321433]
[1747748365705,6.021,166.02,165.99,0.04321433]
[1747748365906,0.04217045,166.03,165.99,0.04321433]
[1747748366311,0.04217045,166.03,166.01,6.0213]
[1747748366505,0.04217045,166.03,165.99,0.04321433]
[1747748367405,0.04217045,166.03,166.02,6.021]
[1747748369508,0.04217045,166.03,166.01,6.0212]
[1747748369810,0.04217045,166.03,165.99,0.04321433]
[1747748371908,6.0232,165.96,165.94,0.9951012]
[1747748372212,2.0423,166.02,165.94,0.9951012]
[1747748372914,0.03977702,166.0,165.96,0.04330127]
[1747748373213,6.0228,165.97,165.96,0.04330127]
[1747748378316,0.03977702,166.0,165.96,0.04330127]
[1747748378917,6.0228,165.97,165.96,0.04330127]
[1747748380238,0.03977702,166.0,165.96,0.04330127]
[1747748381218,0.03977702,166.0,165.99,6.0221]
[1747748381418,1.9046,166.07,165.98,81.78]
[1747748381818,83.8468,166.11,165.98,81.78]
[1747748382016,6.0197,166.06,166.02,6.0207]
[1747748382220,85.7514,166.11,165.98,81.78]
[1747748382413,0.04577868,166.06,166.04,6.0201]
[1747748382723,0.04577868,166.06,166.03,0.04145562]
[1747748383022,6.0203,166.04,166.03,0.04145562]
[1747748384325,6.0218,166.0,165.97,81.78]
[1747748384516,26.36313476,166.09,165.97,81.78]
[1747748384823,6.0218,166.0,165.97,81.78]
[1747748385222,81.78,166.06,165.97,81.78]
[1747748385526,0.04165248,166.03,166.0,0.03948088]
[1747748385825,6.0212,166.02,166.0,0.03948088]
[1747748386121,0.04165248,166.03,166.0,0.03948088]
[1747748386323,6.06235248,166.03,166.0,6.06088088]
[1747748386521,0.04165248,166.03,166.0,0.03948088]
[1747748387022,0.04165248,166.03,166.01,6.021]
[1747748387224,0.04165248,166.03,166.0,0.03948088]
[1747748387420,0.04165248,166.03,165.94,6.0239]
[1747748387734,0.04165248,166.03,165.93,83.8033]
[1747748387735,0.04165248,166.03,165.93,81.78]
[1747748387921,6.0212,166.02,165.93,81.78]
[1747748388426,16.20944965,166.08,165.93,81.78]
[1747748388621,6.0204,166.04,166.01,6.0214]
[1747748388922,0.03901901,166.02,166.01,6.06402237]
[1747748389113,81.78,166.07,166.01,6.06402237]
[1747748389114,0.04629385,166.03,166.01,0.04262237]
[1747748389521,6.06719385,166.03,166.01,0.04262237]
[1747748389723,0.04629385,166.03,166.01,0.04262237]
[1747748390124,0.04629385,166.03,166.02,6.021]
[1747748392222,6.0182,166.1,166.01,0.04262237]
[1747748392418,83.7947,166.15,166.01,16.20944965]
[1747748392622,27.22925267,166.2,166.01,16.20944965]
[1747748392623,4.0071,166.18,166.01,16.20944965]
[1747748393312,0.04411688,166.11,166.1,6.0181]
[1747748393623,0.04619829,166.12,166.09,81.80248523]
[1747748393921,0.0462184,166.12,166.11,6.0175]
[1747748395721,2.0032,166.23,166.11,6.02]
[1747748395925,2.0032,166.23,166.1,1.9225]
[1747748395926,2.0032,166.23,166.1,4.0188]
[1747748396630,0.04286723,166.18,166.15,0.04028534]
[1747748396830,0.04286723,166.18,166.17,6.0153]
[1747748397825,0.04286723,166.18,166.15,81.78028534]
[1747748398626,0.04286723,166.18,166.15,0.04028534]
[1747748399334,6.0157,166.17,166.15,0.04028534]
[1747748399827,6.05816723,166.18,166.15,0.04028534]
[1747748400029,0.04286723,166.18,166.15,6.05638534]
[1747748400325,0.04286723,166.18,166.15,0.04028534]
[1747748400729,0.04286723,166.18,166.16,6.0157]
[1747748401126,0.04286723,166.18,166.15,6.05658534]
[1747748401629,6.016,166.16,166.15,0.04028534]
[1747748401929,0.04286723,166.18,166.1,78.78]
[1747748402229,6.0167,166.14,166.1,78.78]
[1747748402930,0.04627934,166.14,166.1,0.04435731]
[1747748403230,0.04627934,166.14,166.11,6.0177]
[1747748403425,0.04627934,166.14,166.1,0.04435731]
[1747748408936,0.04627934,166.14,166.03,6.0206]
[1747748409132,26.26310694,166.12,166.01,0.9951012]
[1747748409325,26.26310694,166.08,166.01,0.9951012]
[1747748409635,522.1257,166.11,166.01,0.9951012]
[1747748409828,78.78,166.1,166.01,0.9951012]
[1747748410033,6.06350504,166.07,166.04,6.0654658]
[1747748410328,0.04410504,166.07,166.04,0.0453658]
[1747748410533,2.0465,166.06,165.99,1.28894197]
[1747748410833,78.78,166.05,165.94,0.98476656]
[1747748411020,6.0211,166.02,165.98,6.0224]
[1747748411331,78.78,166.05,165.94,0.98476656]
[1747748411635,0.04390355,166.0,165.96,0.04176677]
[1747748412539,0.04390355,166.0,165.99,6.0221]
[1747748412835,0.04390355,166.0,165.96,0.04176677]
[1747748414330,0.04390355,166.0,165.98,6.0222]
[1747748414530,0.04390355,166.0,165.96,0.04176677]
[1747748415034,0.04390355,166.0,165.99,6.0221]
[1747748415232,0.04390355,166.0,165.96,0.04176677]
[1747748416739,6.06590355,166.0,165.96,6.06486677]
[1747748416944,78.8,165.99,165.96,0.04176677]
[1747748417236,78.8,165.99,165.89,521.33971]
[1747748418034,84.8222,165.99,165.89,521.33971]
[1747748418236,0.0419343,165.96,165.92,0.04487914]
[1747748418738,0.0419343,165.96,165.95,6.0233]
[1747748419240,0.0419343,165.96,165.93,6.0242]
[1747748419442,0.0419343,165.96,165.92,0.04487914]
[1747748420233,0.0419343,165.96,165.95,6.0236]
[1747748421127,0.0419343,165.96,165.94,6.0236]
[1747748421332,0.0419343,165.96,165.92,0.04487914]
[1747748422543,0.0419343,165.96,165.95,6.0236]
[1747748422738,78.82,166.07,165.95,78.82]
[1747748423037,78.82,166.07,165.96,3.9283]
[1747748423538,78.82,166.07,166.0,6.0217]
[1747748423840,0.0432761,166.05,166.01,0.03808135]
[1747748424041,6.021,166.02,166.01,0.03808135]
[1747748424441,0.0432761,166.05,166.01,0.03808135]
[1747748425640,0.0432761,166.05,166.04,6.0203]
[1747748426035,0.0432761,166.05,166.04,2.99670125]
[1747748427140,80.8489,166.13,166.09,6.0182]
[1747748427840,78.82,166.13,166.02,78.82]
[1747748428042,0.0399102,166.09,166.06,0.04625138]
[1747748428343,0.04583526,166.09,166.06,0.04036983]
[1747748428743,3.8031,166.18,166.14,6.0166]
[1747748429042,520.42,166.19,166.07,78.82]
[1747748429242,78.82,166.2,166.07,78.82]
[1747748429433,78.82,166.2,166.08,16.20632335]
[1747748429634,3.8031,166.23,166.08,16.20632335]
[1747748429831,0.04134716,166.17,166.14,0.04402358]
[1747748430039,0.04134716,166.17,166.16,6.016]
[1747748432043,0.04134716,166.17,166.14,6.06042358]
[1747748432246,0.04134716,166.17,166.14,0.04402358]
[1747748432647,0.04134716,166.17,166.14,6.06062358]
[1747748433247,0.04134716,166.17,166.15,6.0162]
[1747748433947,0.04134716,166.17,166.14,0.04402358]
[1747748433948,0.04134716,166.17,166.16,6.016]
[1747748434443,0.04134716,166.17,166.14,0.04402358]
[1747748436253,0.04134716,166.17,166.14,6.06062358]
[1747748436446,0.04134716,166.17,166.14,0.04402358]
[1747748436845,6.0163,166.15,166.14,0.04402358]
[1747748437550,0.04134716,166.17,166.07,77.83723]
[1747748437753,76.6,166.18,166.07,77.83723]
[1747748438456,0.04632205,166.14,166.11,0.04633563]
[1747748438649,6.06332205,166.14,166.11,0.04633563]
[1747748438955,0.04632205,166.14,166.11,0.04633563]
[1747748439458,76.58,166.13,166.07,1.25723]
[1747748439661,76.58,166.13,166.03,76.58]
[1747748439662,18.20022335,166.12,165.99,522.3673]
[1747748439952,18.20022335,166.12,165.96,1.95133182]
[1747748439953,6.0204,166.04,166.0,6.0215]
[1747748440152,76.58,166.08,165.98,77.86894197]
[1747748440659,0.04147656,166.05,166.01,0.04578374]
[1747748443151,0.04147656,166.05,166.04,6.0203]
[1747748445163,0.04147656,166.05,166.01,0.04578374]
[1747748445869,6.0206,166.04,166.01,0.04578374]
[1747748446162,0.04147656,166.05,166.01,6.06688374]
[1747748446363,6.06157656,166.05,166.01,6.06688374]
[1747748446550,0.04147656,166.05,166.01,0.04578374]
[1747748447563,6.0204,166.04,166.01,0.04578374]
[1747748448366,6.0208,166.03,166.01,0.04578374]
[1747748448769,0.04147656,166.05,166.01,0.04578374]
[1747748449062,16.20632335,166.03,165.87,76.62]
[1747748449267,78.6744,166.02,165.91,6.0249]
[1747748450070,6.0232,165.96,165.95,0.0461605]
[1747748450471,76.62,165.97,165.87,82.7287]
[1747748450970,78.5063,165.97,165.87,82.7287]
[1747748451162,6.025,165.92,165.88,1.50644973]
[1747748451363,6.025,165.92,165.89,6.0257]
[1747748451668,6.025,165.92,165.89,0.03727612]
[1747748451669,6.0254,165.9,165.89,0.03727612]
[1747748453569,82.70987796,165.92,165.89,0.03727612]
[1747748453765,76.68507796,165.92,165.89,0.03727612]
[1747748453967,6.0253,165.91,165.89,0.03727612]
[1747748454467,6.0254,165.9,165.89,0.03727612]
[1747748456275,6.025,165.91,165.89,0.03727612]
[1747748456477,76.68507796,165.92,165.89,0.03727612]
[1747748457668,6.0253,165.91,165.89,0.03727612]
[1747748457873,0.04507796,165.92,165.89,0.03727612]
[1747748458077,0.04507796,165.92,165.9,6.0252]
[1747748458385,0.04507796,165.92,165.89,0.03727612]
[1747748458571,6.06977796,165.92,165.89,6.06277612]
[1747748458775,0.04507796,165.92,165.89,0.03727612]
[1747748459272,6.0254,165.9,165.89,0.03727612]
[1747748459480,0.04507796,165.92,165.89,0.03727612]
[1747748460685,6.0254,165.9,165.89,0.03727612]
[1747748461077,75.32,165.91,165.89,0.03727612]
[1747748461378,0.04507796,165.92,165.89,0.03727612]
[1747748461783,0.04507796,165.92,165.91,6.025]
[1747748462085,0.04507796,165.92,165.89,0.03727612]
[1747748462288,6.0254,165.9,165.89,0.03727612]
[1747748462490,75.32,165.9,165.81,6.1606]
[1747748462892,6.0262,165.88,165.84,6.0272]
[1747748463184,75.32,165.9,165.81,6.1606]
[1747748463384,0.04242499,165.87,165.83,6.0277]
[1747748463588,0.04242499,165.87,165.81,6.1606]
[1747748464586,0.04242499,165.87,165.86,6.0268]
[1747748464982,6.0249,165.92,165.88,6.0259]
[1747748465478,6.0237,165.95,165.92,6.0246]
[1747748465687,77.3099,165.99,165.88,75.34]
[1747748465879,0.03978319,165.95,165.92,0.04242499]
[1747748466078,0.03978319,165.95,165.94,6.0239]
[1747748466279,524.7186,166.04,165.92,0.04242499]
[1747748466585,6.0214,166.02,165.93,75.34]
[1747748466786,75.34,166.03,165.93,75.34]
[1747748466983,86.35980302,166.08,165.93,75.34]
[1747748467286,0.04506744,166.02,165.99,6.06797437]
[1747748467781,0.04506744,166.02,165.99,0.04607437]
[1747748468285,0.04506744,166.02,166.01,6.0214]
[1747748468683,75.34,166.08,166.0,2.0916]
[1747748468887,596.08,166.12,166.0,2.0916]
[1747748469490,596.08,166.12,166.02,6.0208]
[1747748469690,0.03794941,166.09,166.05,0.04131726]
[1747748470078,6.0196,166.06,166.05,0.04131726]
[1747748470282,75.32,166.06,165.94,596.06]
[1747748471190,0.04496511,166.02,165.99,6.0218]
[1747748471386,0.04496511,166.02,165.98,0.04268034]
[1747748471785,6.0215,166.01,165.98,0.04268034]
[1747748471985,0.04496511,166.02,165.98,0.04268034]
[1747748473478,0.04496511,166.02,165.99,6.022]
[1747748473683,0.04496511,166.02,165.98,0.04268034]
[1747748474685,0.04496511,166.02,166.01,6.0214]
[1747748475289,77.207,166.1,166.04,6.0201]
[1747748475483,75.3,166.1,165.99,75.3]
[1747748475679,77.2704,166.14,165.99,75.3]
[1747748476283,75.3,166.14,166.05,0.0399885]
[1747748476487,0.0437212,166.08,166.07,6.0192]
[1747748476785,6.017,166.14,166.06,4.10286861]
[1747748477290,6.0171,166.13,166.06,4.10286861]
[1747748477491,6.0171,166.13,166.06,4.0589]
[1747748477691,6.05601966,166.11,166.08,0.04158336]
[1747748477885,0.03821966,166.11,166.08,0.04158336]
[1747748478285,6.0185,166.09,166.08,0.04158336]
[1747748479089,6.05631966,166.11,166.08,0.04158336]
[1747748479291,0.03821966,166.11,166.08,0.04158336]
[1747748479492,6.0185,166.09,166.08,0.04158336]
[1747748480398,6.0183,166.1,166.08,0.04158336]
[1747748481090,6.0185,166.09,166.08,0.04158336]
[1747748483797,6.0185,166.09,166.08,8.336e-05]
[1747748485496,6.0213,166.02,165.98,77.1713]
[1747748485793,1.9825,166.1,165.98,77.1713]
[1747748486490,2.0271,166.11,165.98,77.1713]
[1747748486491,0.04604264,166.06,166.02,0.04636962]
[1747748487894,0.04604264,166.06,166.05,6.0199]
[1747748488496,0.04604264,166.06,166.04,6.0201]
[1747748488996,0.04604264,166.06,166.02,0.04636962]
[1747748489603,6.06574264,166.06,166.03,6.0206]
[1747748489800,0.04604264,166.06,166.02,0.04636962]
[1747748490099,6.0204,166.04,166.02,0.04636962]
[1747748490699,0.04604264,166.06,166.02,0.04636962]
[1747748491302,0.04604264,166.06,166.04,6.0201]
[1747748491896,0.04604264,166.06,166.03,6.0206]
[1747748492098,0.04604264,166.06,166.02,0.04636962]
[1747748492296,6.0202,166.05,166.02,0.04636962]
[1747748492493,0.04604264,166.06,166.02,0.04636962]
[1747748493104,0.04604264,166.06,166.04,6.0202]
[1747748493600,0.04604264,166.06,166.02,0.04636962]
[1747748493798,0.04604264,166.06,166.03,6.0205]
[1747748494302,0.04604264,166.06,166.02,0.04636962]
[1747748494500,0.04604264,166.06,166.04,6.02]
[1747748494707,0.04604264,166.06,166.02,0.04636962]
[1747748495100,0.04604264,166.06,166.03,6.0206]
[1747748495302,0.04604264,166.06,166.02,0.04636962]
[1747748495702,0.04604264,166.06,166.04,6.02]
[1747748495907,0.04604264,166.06,166.02,0.04636962]
[1747748496105,0.04604264,166.06,166.02,6.06716962]
[1747748496406,0.04604264,166.06,166.02,0.04636962]
[1747748496906,0.04604264,166.06,166.05,6.0199]
[1747748497205,0.04604264,166.06,166.02,0.04636962]
[1747748497405,0.04604264,166.06,166.05,6.0199]
[1747748498008,0.04604264,166.06,166.04,6.0201]
[1747748498206,0.04604264,166.06,166.03,75.16]
[1747748498708,0.04604264,166.06,166.05,6.0199]
[1747748499708,6.0185,166.09,166.07,6.0192]
[1747748500605,75.14,166.17,166.03,77.2466]
[1747748500800,0.04416263,166.12,166.08,0.04130466]
[1747748501000,0.04416263,166.12,166.08,75.18130466]
[1747748501200,0.04416263,166.12,166.08,0.04130466]
[1747748501400,6.0183,166.1,166.08,0.04130466]
[1747748501596,0.04416263,166.12,166.08,0.04130466]
[1747748501803,75.18416263,166.12,166.08,0.04130466]
[1747748503408,75.18416263,166.12,166.09,6.0184]
[1747748503908,0.04416263,166.12,166.09,6.0184]
[1747748504205,0.04416263,166.12,166.11,6.0178]
[1747748506211,0.04416263,166.12,166.08,0.04130466]
[1747748506704,6.06186263,166.12,166.08,6.06010466]
[1747748506911,0.04416263,166.12,166.08,0.04130466]
[1747748507104,0.04416263,166.12,166.09,6.0183]
[1747748507304,0.04416263,166.12,166.08,0.04130466]
[1747748507797,0.04416263,166.12,166.11,6.0178]
[1747748510114,0.04416263,166.12,166.1,6.018]
[1747748510314,0.04416263,166.12,166.08,0.04130466]
[1747748511314,0.04416263,166.12,166.09,1.50488751]
[1747748511918,6.0178,166.11,166.09,7.52338751]
[1747748512219,6.0178,166.11,166.09,1.50488751]
[1747748512408,0.04416263,166.12,166.1,6.0181]
[1747748512614,0.04416263,166.12,166.08,0.04130466]
[1747748513017,6.0178,166.11,166.09,6.0184]
[1747748513209,0.04416263,166.12,166.09,6.0184]
[1747748513719,6.06176263,166.12,166.09,6.0184]
[1747748514015,0.04416263,166.12,166.08,0.04130466]
[1747748514411,0.04416263,166.12,166.1,6.0181]
[1747748515118,0.04416263,166.12,166.08,0.04130466]
[1747748516012,6.0183,166.1,166.08,0.04130466]
[1747748517022,6.0185,166.09,166.08,0.04130466]
[1747748517518,6.0183,166.1,166.08,0.04130466]
[1747748517722,0.04416263,166.12,166.08,0.04130466]
[1747748518819,6.0185,166.09,166.08,0.04130466]
[1747748520424,6.0185,166.09,166.08,4.66e-06]
[1747748520622,6.0203,166.04,166.02,0.97850695]
[1747748521120,6.0207,166.03,166.02,0.97850695]
[1747748521422,74.9,166.05,165.97,1.95133182]
[1747748521720,16.25107895,166.03,165.92,74.9]
[1747748522021,6.0239,165.94,165.89,12.87263434]
[1747748522516,6.0239,165.94,165.89,6.84703434]
[1747748522721,6.0239,165.94,165.92,0.0425165]
[1747748523522,0.04333967,165.95,165.92,0.0425165]
[1747748527723,6.0242,165.94,165.92,0.0425165]
[1747748528418,6.0243,165.93,165.92,0.0425165]
[1747748528613,74.94,165.93,165.85,1.50661853]
[1747748528813,74.94,165.93,165.77,4.0961]
[1747748529012,16.20632335,165.87,165.74,1.9603]
[1747748529223,80.8716,165.86,165.74,1.9603]
[1747748529423,6.0295,165.79,165.73,2.64692394]
[1747748529626,0.04442597,165.78,165.74,0.04208174]
[1747748529928,0.04123323,165.78,165.74,0.04476679]
[1747748530122,16.26571634,165.75,165.67,13.27961399]
[1747748530327,76.9062,165.74,165.67,13.27961399]
[1747748530623,6.0334,165.68,165.67,13.27961399]
[1747748530823,16.26873154,165.72,165.66,9.39714272]
[1747748531023,16.26873154,165.72,165.65,28.35384014]
[1747748531326,6.0341,165.66,165.65,28.35384014]
[1747748531917,16.26873154,165.68,165.63,3.30280433]
[1747748531918,6.0348,165.64,165.63,3.30280433]
[1747748532324,0.04280972,165.65,165.63,3.30280433]
[1747748532917,6.07760972,165.65,165.63,3.30280433]
[1747748533132,0.04280972,165.65,165.59,2.0017]
[1747748534515,0.04280972,165.65,165.6,75.0]
[1747748535028,0.04280972,165.65,165.59,2.0017]
[1747748535230,0.04280972,165.65,165.6,81.036]
[1747748535426,0.04280972,165.65,165.6,75.0]
[1747748535728,0.04280972,165.65,165.64,6.0348]
[1747748536723,6.0329,165.7,165.65,6.0343]
[1747748537330,6.0322,165.72,165.66,6.0341]
[1747748537522,75.0,165.73,165.66,6.0341]
[1747748537827,0.04522247,165.71,165.68,0.04610826]
[1747748538126,6.07782247,165.71,165.68,0.04610826]
[1747748538526,0.04522247,165.71,165.68,0.04610826]
[1747748539024,6.033,165.69,165.68,0.04610826]
[1747748539226,16.26873154,165.69,165.55,75.06]
[1747748539834,16.26873154,165.65,165.55,75.06]
[1747748540331,0.04542702,165.62,165.55,75.06]
[1747748540632,6.08112702,165.62,165.55,75.06]
[1747748540839,0.04542702,165.62,165.57,6.0374]
[1747748541034,0.04542702,165.62,165.55,75.06]
[1747748541235,6.0369,165.59,165.53,3.8951]
[1747748541447,0.04048321,165.58,165.54,75.08]
[1747748541734,6.07788321,165.58,165.54,75.08]
[1747748542126,0.04048321,165.58,165.53,3.8951]
[1747748542323,0.04048321,165.58,165.52,520.52]
[1747748542827,1.05135952,165.71,165.52,520.52]
[1747748543130,75.08,165.69,165.52,520.52]
[1747748543535,6.0345,165.65,165.52,520.52]
[1747748543734,0.04068258,165.6,165.57,0.04444669]
[1747748543934,16.26873154,165.68,165.58,75.08]
[1747748544533,16.26873154,165.68,165.58,81.1169]
[1747748544830,16.26873154,165.68,165.58,75.08]
[1747748545034,6.0357,165.62,165.61,0.0462649]
[1747748545537,0.04473038,165.65,165.61,0.0462649]
[1747748546335,6.0352,165.63,165.61,0.0462649]
[1747748546542,0.04473038,165.65,165.61,0.0462649]
[1747748547040,6.0351,165.64,165.61,0.0462649]
[1747748547441,0.04473038,165.65,165.61,0.0462649]
[1747748548442,6.0355,165.63,165.61,0.0462649]
[1747748548744,0.04473038,165.65,165.61,0.0462649]
[1747748548949,6.0356,165.62,165.61,0.0462649]
[1747748552351,0.04473038,165.65,165.61,0.0462649]
[1747748552948,0.04473038,165.65,165.61,6.0821649]
[1747748553146,0.04473038,165.65,165.61,0.0462649]
[1747748553750,74.88,165.72,165.61,0.0462649]
[1747748553941,74.88,165.74,165.59,74.88]
[1747748554756,0.04189239,165.68,165.65,0.04144065]
[1747748554952,2.0622,165.75,165.65,74.92144065]
[1747748555147,74.88,165.78,165.66,1.9884]
[1747748555451,74.88,165.78,165.66,3.9195]
[1747748555756,74.88,165.78,165.7,6.0323]
[1747748555955,0.04553676,165.76,165.72,0.04414993]
[1747748556353,74.88,165.82,165.72,0.04414993]
[1747748556649,74.88,165.82,165.71,74.88]
[1747748556855,6.0299,165.78,165.74,6.0309]
[1747748557157,74.88,165.82,165.71,74.88]
[1747748557653,0.04043565,165.78,165.75,0.04043751]
[1747748558858,612.76873154,165.85,165.75,0.04043751]
[1747748559049,91.14873154,165.85,165.76,74.88]
[1747748559354,6.0286,165.82,165.78,6.0297]
[1747748559759,6.07404974,165.82,165.78,6.07028972]
[1747748560156,6.0287,165.81,165.78,0.04058972]
[1747748560653,0.04544974,165.82,165.78,6.07028972]
[1747748560854,0.04544974,165.82,165.78,0.04058972]
[1747748564161,0.04544974,165.82,165.78,1.95948972]
[1747748564359,6.07404974,165.82,165.78,7.98898972]
[1747748564654,0.04544974,165.82,165.78,1.95948972]
[1747748564956,6.07394974,165.82,165.78,7.98898972]
[1747748565960,6.0287,165.81,165.78,7.98898972]
[1747748566459,0.04544974,165.82,165.78,1.95948972]
[1747748566853,0.04544974,165.82,165.79,6.0293]
[1747748567054,0.04544974,165.82,165.78,1.95948972]
[1747748568359,6.0287,165.81,165.78,7.98898972]
[1747748568560,0.04544974,165.82,165.78,1.95948972]
[1747748569362,6.0294,165.79,165.78,1.95948972]
[1747748569561,6.0294,165.79,165.78,0.04058972]
[1747748570265,6.0292,165.8,165.78,0.04058972]
[1747748570451,0.04544974,165.82,165.78,0.04058972]
[1747748571760,6.0293,165.8,165.78,0.04058972]
[1747748571965,0.04544974,165.82,165.78,0.04058972]
[1747748572256,6.0293,165.8,165.78,0.04058972]
[1747748572456,0.04544974,165.82,165.78,0.04058972]
[1747748572763,6.0294,165.79,165.78,0.04058972]
[1747748574559,6.0294,165.79,165.78,8.972e-05]
[1747748577559,0.04544974,165.82,165.78,8.972e-05]
[1747748578766,0.04544974,165.82,165.78,6.02968972]
[1747748579063,6.029,165.8,165.78,8.972e-05]
[1747748579364,0.04544974,165.82,165.78,8.972e-05]
[1747748580162,0.04544974,165.82,165.78,6.02978972]
[1747748580665,0.04544974,165.82,165.78,8.972e-05]
[1747748581365,6.0294,165.79,165.78,8.972e-05]
[1747748584867,3.87794974,165.82,165.71,6.032]
[1747748585167,3.8325,165.82,165.71,6.032]
[1747748585362,6.0313,165.74,165.71,6.032]
[1747748585675,3.8325,165.82,165.7,80.6325]
[1747748585967,0.04260771,165.78,165.74,0.03852354]
[1747748586257,6.0308,165.75,165.74,0.03852354]
[1747748588065,6.0308,165.75,165.74,2.354e-05]
[1747748589363,0.04260771,165.78,165.74,2.354e-05]
[1747748590066,6.0308,165.75,165.74,2.354e-05]
[1747748590360,0.04260771,165.78,165.74,2.354e-05]
[1747748590565,6.07250771,165.78,165.75,6.0308]
[1747748590967,6.07250771,165.78,165.74,2.354e-05]
[1747748590968,0.04260771,165.78,165.74,2.354e-05]
[1747748591466,6.0301,165.77,165.74,6.03092354]
[1747748592166,6.0301,165.77,165.75,6.0308]
[1747748592969,6.07250771,165.78,165.75,6.0308]
[1747748593267,0.04260771,165.78,165.75,6.0308]
[1747748593564,0.04260771,165.78,165.77,6.0301]
[1747748593764,0.04260771,165.78,165.75,1.8972]
[1747748594068,0.04260771,165.78,165.74,2.354e-05]
[1747748594673,6.0307,165.76,165.74,2.354e-05]
[1747748595163,6.07250771,165.78,165.75,6.0306]
[1747748595359,0.04260771,165.78,165.74,2.354e-05]
[1747748595764,6.0302,165.77,165.74,6.03112354]
[1747748595973,6.0302,165.77,165.74,2.354e-05]
[1747748596273,0.04260771,165.78,165.74,2.354e-05]
[1747748596771,6.07250771,165.78,165.75,6.0308]
[1747748597270,6.07250771,165.78,165.74,2.354e-05]
[1747748597462,0.04260771,165.78,165.77,6.0301]
[1747748598075,0.04260771,165.78,165.76,6.0303]
[1747748598270,0.04260771,165.78,165.74,2.354e-05]
[1747748598666,0.04260771,165.78,165.77,6.0301]
[1747748599377,74.62,165.83,165.79,6.0293]
[1747748599674,80.6482,165.83,165.75,76.5734]
[1747748599875,6.0282,165.83,165.8,6.0289]
[1747748600168,76.638,165.87,165.8,6.0289]
[1747748600376,76.638,165.87,165.75,76.5734]
[1747748600377,0.0428329,165.85,165.82,6.07352487]
[1747748600576,0.0428329,165.85,165.82,0.04542487]
[1747748601070,0.0428329,165.85,165.84,6.0276]
[1747748601775,1.05703769,165.88,165.87,6.0265]
[1747748601980,14.95529922,165.94,165.81,1.9357]
[1747748601981,14.95529922,165.94,165.86,74.6]
[1747748602275,14.95529922,165.94,165.89,6.0257]
[1747748602474,1.59050302,165.9,165.89,6.0257]
[1747748602675,0.0451203,165.91,165.88,0.04613779]